[Event "Titled Tuesday Blitz November 14 Early 2023"]
[White "Dubov, Daniil"]
[Black "Lehtosaari, Mauri"]
[WhiteFideId "24126055"]
[BlackFideId "501999"]
[WhiteElo "3131"]
[BlackElo "2539"]
[Result "1-0"]
[Round "1"]
[TimeControl "180+1"]
[Date "2023.11.14"]
[WhiteClock "0:00:06"]
[BlackClock "0:00:06"]
[Board "2"]

1. e4 {[%clk 0:03:00]}  d5 {[%clk 0:02:58]} 2. exd5 {[%clk 0:03:00]}  Qxd5 {[%clk 0:02:59]} 3. Nc3 {[%clk 0:03:00]}  Qd8 {[%clk 0:02:55]} 4. d4 {[%clk 0:03:00]}  Nf6 {[%clk 0:02:55]} 5. Bg5 {[%clk 0:02:59]}  c6 {[%clk 0:02:51]} 6. Bc4 {[%clk 0:02:57]}  Qa5 {[%clk 0:02:48]} 7. Qd2 {[%clk 0:02:47]}  Bf5 {[%clk 0:02:43]} 8. Nf3 {[%clk 0:02:44]}  e6 {[%clk 0:02:43]} 9. O-O {[%clk 0:02:39]}  Nbd7 {[%clk 0:02:38]} 10. Rfe1 {[%clk 0:02:37]}  Be7 {[%clk 0:02:37]} 11. Ne5 {[%clk 0:02:35]}  Qd8 {[%clk 0:02:08]} 12. Rad1 {[%clk 0:02:19]}  Nxe5 {[%clk 0:02:04]} 13. Rxe5 {[%clk 0:02:14]}  O-O {[%clk 0:02:01]} 14. h3 {[%clk 0:02:12]}  Bg6 {[%clk 0:01:49]} 15. Qe2 {[%clk 0:02:07]}  Re8 {[%clk 0:01:41]} 16. a4 {[%clk 0:02:01]}  a5 {[%clk 0:01:38]} 17. Bd3 {[%clk 0:01:54]}  Nd5 {[%clk 0:01:29]} 18. Bxe7 {[%clk 0:01:51]}  Nxe7 {[%clk 0:01:27]} 19. h4 {[%clk 0:01:47]}  Bxd3 {[%clk 0:01:24]} 20. Rxd3 {[%clk 0:01:46]}  Ng6 {[%clk 0:01:24]} 21. Re4 {[%clk 0:01:39]}  h6 {[%clk 0:01:09]} 22. h5 {[%clk 0:01:37]}  Ne7 {[%clk 0:01:10]} 23. Rg4 {[%clk 0:01:33]}  Nf5 {[%clk 0:01:07]} 24. Qe5 {[%clk 0:01:29]}  Qb8 {[%clk 0:01:01]} 25. Qe1 {[%clk 0:01:08]}  Rd8 {[%clk 0:00:54]} 26. Ne4 {[%clk 0:01:06]}  Kh8 {[%clk 0:00:47]} 27. Ng3 {[%clk 0:01:03]}  Ne7 {[%clk 0:00:37]} 28. Re4 {[%clk 0:01:01]}  Rd5 {[%clk 0:00:33]} 29. Rf3 {[%clk 0:00:58]}  Qe8 {[%clk 0:00:31]} 30. Ref4 {[%clk 0:00:56]}  Nf5 {[%clk 0:00:23]} 31. Nxf5 {[%clk 0:00:56]}  exf5 {[%clk 0:00:24]} 32. Qxe8+ {[%clk 0:00:50]}  Rxe8 {[%clk 0:00:24]} 33. Rxf5 {[%clk 0:00:51]}  Rxd4 {[%clk 0:00:23]} 34. Rxf7 {[%clk 0:00:45]}  Re1+ {[%clk 0:00:13]} 35. Kh2 {[%clk 0:00:45]}  Rh4+ {[%clk 0:00:14]} 36. Rh3 {[%clk 0:00:40]}  Rxa4 {[%clk 0:00:13]} 37. Rxb7 {[%clk 0:00:20]}  Re2 {[%clk 0:00:12]} 38. Rf3 {[%clk 0:00:13]}  Rh4+ {[%clk 0:00:07]} 39. Kg3 {[%clk 0:00:13]}  Rxh5 {[%clk 0:00:07]} 40. Rf8+ {[%clk 0:00:13]}  Kh7 {[%clk 0:00:07]} 41. f4 {[%clk 0:00:14]}  Re6 {[%clk 0:00:03]} 42. Kf3 {[%clk 0:00:10]}  Rg6 {[%clk 0:00:02]} 43. Rbb8 {[%clk 0:00:07]}  Rf6 {[%clk 0:00:01]} 44. Rxf6 {[%clk 0:00:06]}  gxf6 {[%clk 0:00:02]} 45. Rc8 {[%clk 0:00:05]}  Rb5 {[%clk 0:00:01]} 46. b3 {[%clk 0:00:04]}  Rc5 {[%clk 0:00:01]} 47. c4 {[%clk 0:00:04]}  a4 {[%clk 0:00:02]} 48. bxa4 {[%clk 0:00:05]}  Rxc4 {[%clk 0:00:03]} 49. a5 {[%clk 0:00:05]}  Ra4 {[%clk 0:00:02]} 50. Rxc6 {[%clk 0:00:05]}  Rxa5 {[%clk 0:00:02]} 51. Rxf6 {[%clk 0:00:06]}  Kg7 {[%clk 0:00:02]} 52. Re6 {[%clk 0:00:06]}  Ra3+ {[%clk 0:00:02]} 53. Re3 {[%clk 0:00:06]}  Ra4 {[%clk 0:00:02]} 54. g4 {[%clk 0:00:06]}  Kf6 {[%clk 0:00:03]} 55. Kg3 {[%clk 0:00:06]}  Rb4 {[%clk 0:00:03]} 56. Ra3 {[%clk 0:00:06]}  Rb6 {[%clk 0:00:03]} 57. Kh4 {[%clk 0:00:06]}  Kg6 {[%clk 0:00:03]} 58. Ra8 {[%clk 0:00:05]}  Rb1 {[%clk 0:00:02]} 59. Ra6+ {[%clk 0:00:03]}  Kg7 {[%clk 0:00:03]} 60. Ra7+ {[%clk 0:00:04]}  Kg6 {[%clk 0:00:03]} 61. f5+ {[%clk 0:00:04]}  Kf6 {[%clk 0:00:04]} 62. Ra6+ {[%clk 0:00:03]}  Kg7 {[%clk 0:00:04]} 63. Rg6+ {[%clk 0:00:03]}  Kh7 {[%clk 0:00:05]} 64. Re6 {[%clk 0:00:04]}  Kg7 {[%clk 0:00:05]} 65. Kg3 {[%clk 0:00:04]}  Rb3+ {[%clk 0:00:05]} 66. Kf4 {[%clk 0:00:04]}  Rb4+ {[%clk 0:00:06]} 67. Re4 {[%clk 0:00:04]}  Rb1 {[%clk 0:00:06]} 68. Re7+ {[%clk 0:00:05]}  Kg8 {[%clk 0:00:06]} 69. f6 {[%clk 0:00:03]}  Rb5 {[%clk 0:00:07]} 70. Rg7+ {[%clk 0:00:02]}  Kf8 {[%clk 0:00:07]} 71. Rh7 {[%clk 0:00:02]}  Rb6 {[%clk 0:00:06]} 72. Rxh6 {[%clk 0:00:03]}  Kf7 {[%clk 0:00:06]} 73. g5 {[%clk 0:00:03]}  Rb4+ {[%clk 0:00:06]} 74. Kf5 {[%clk 0:00:04]}  Rb5+ {[%clk 0:00:06]} 75. Kg4 {[%clk 0:00:05]}  Rb4+ {[%clk 0:00:07]} 76. Kh5 {[%clk 0:00:05]}  Kg8 {[%clk 0:00:07]} 77. Rg6+ {[%clk 0:00:05]}  Kh7 {[%clk 0:00:07]} 78. Rg7+ {[%clk 0:00:06]}  Kh8 {[%clk 0:00:08]} 79. Re7 {[%clk 0:00:06]}  Kg8 {[%clk 0:00:08]} 80. Kg6 {[%clk 0:00:07]}  Rb8 {[%clk 0:00:08]} 81. Re8+ {[%clk 0:00:06]}  Rxe8 {[%clk 0:00:06]} 82. f7+ {[%clk 0:00:06]} 1-0


[Site "https://www.chess.com"]

[Event "Titled Tuesday Blitz November 14 Early 2023"]
[White "Le, Tuan Minh"]
[Black "brm72"]
[WhiteFideId "12401153"]
[WhiteElo "3060"]
[BlackElo "2530"]
[Result "1-0"]
[Round "1"]
[TimeControl "180+1"]
[Date "2023.11.14"]
[WhiteClock "0:02:27"]
[BlackClock "0:01:00"]
[Board "10"]

1. d4 {[%clk 0:03:00]}  Nf6 {[%clk 0:02:59]} 2. Nf3 {[%clk 0:03:00]}  e6 {[%clk 0:02:59]} 3. Bf4 {[%clk 0:02:57]}  d5 {[%clk 0:02:57]} 4. e3 {[%clk 0:02:57]}  c5 {[%clk 0:02:53]} 5. c3 {[%clk 0:02:57]}  Nc6 {[%clk 0:02:53]} 6. Nbd2 {[%clk 0:02:57]}  Be7 {[%clk 0:02:53]} 7. Bd3 {[%clk 0:02:57]}  h6 {[%clk 0:02:51]} 8. O-O {[%clk 0:02:55]}  O-O {[%clk 0:02:44]} 9. Qe2 {[%clk 0:02:55]}  cxd4 {[%clk 0:02:33]} 10. exd4 {[%clk 0:02:53]}  b6 {[%clk 0:02:23]} 11. Rfe1 {[%clk 0:02:51]}  Bb7 {[%clk 0:02:22]} 12. Ne5 {[%clk 0:02:45]}  Nd7 {[%clk 0:02:16]} 13. Nxd7 {[%clk 0:02:40]}  Qxd7 {[%clk 0:02:14]} 14. Qg4 {[%clk 0:02:41]}  Kh8 {[%clk 0:01:54]} 15. Qh5 {[%clk 0:02:31]}  f5 {[%clk 0:01:46]} 16. Bxh6 {[%clk 0:02:30]}  gxh6 {[%clk 0:01:45]} 17. Qxh6+ {[%clk 0:02:31]}  Kg8 {[%clk 0:01:46]} 18. Rxe6 {[%clk 0:02:31]}  Nd8 {[%clk 0:01:17]} 19. Qg6+ {[%clk 0:02:26]}  Kh8 {[%clk 0:01:15]} 20. Qh5+ {[%clk 0:02:26]}  Kg8 {[%clk 0:01:13]} 21. Rg6+ {[%clk 0:02:27]}  Kf7 {[%clk 0:01:00]} 22. Rd6+ {[%clk 0:02:27]} 1-0


[Site "https://www.chess.com"]

[Event "Titled Tuesday Blitz November 14 Early 2023"]
[White "Postlmayer, Jakob"]
[Black "Sadhwani, Raunak"]
[WhiteFideId "1643622"]
[BlackFideId "35093487"]
[WhiteElo "2529"]
[BlackElo "3059"]
[Result "0-1"]
[Round "1"]
[TimeControl "180+1"]
[Date "2023.11.14"]
[WhiteClock "0:00:17"]
[BlackClock "0:00:21"]
[Board "11"]

1. d4 {[%clk 0:02:59]}  Nc6 {[%clk 0:03:00]} 2. Nf3 {[%clk 0:02:58]}  e6 {[%clk 0:02:58]} 3. e4 {[%clk 0:02:56]}  d5 {[%clk 0:02:58]} 4. e5 {[%clk 0:02:56]}  f6 {[%clk 0:02:53]} 5. Bb5 {[%clk 0:02:56]}  Bd7 {[%clk 0:02:51]} 6. O-O {[%clk 0:02:54]}  a6 {[%clk 0:02:16]} 7. Bxc6 {[%clk 0:02:53]}  Bxc6 {[%clk 0:02:17]} 8. Nc3 {[%clk 0:02:49]}  Qd7 {[%clk 0:02:17]} 9. Re1 {[%clk 0:02:46]}  Ne7 {[%clk 0:02:17]} 10. a4 {[%clk 0:02:39]}  Ng6 {[%clk 0:02:15]} 11. b3 {[%clk 0:02:36]}  Be7 {[%clk 0:02:15]} 12. Ba3 {[%clk 0:02:33]}  Bxa3 {[%clk 0:02:12]} 13. Rxa3 {[%clk 0:02:34]}  Kf7 {[%clk 0:02:10]} 14. Qd2 {[%clk 0:02:30]}  h5 {[%clk 0:02:08]} 15. Raa1 {[%clk 0:02:29]}  Rae8 {[%clk 0:02:09]} 16. Re2 {[%clk 0:02:23]}  h4 {[%clk 0:02:09]} 17. h3 {[%clk 0:02:22]}  Rh5 {[%clk 0:02:08]} 18. Rae1 {[%clk 0:02:20]}  Qd8 {[%clk 0:02:08]} 19. Na2 {[%clk 0:02:07]}  Bd7 {[%clk 0:02:04]} 20. Nb4 {[%clk 0:02:05]}  Rf5 {[%clk 0:01:57]} 21. Nd3 {[%clk 0:02:04]}  b6 {[%clk 0:01:55]} 22. Nh2 {[%clk 0:01:59]}  Rh8 {[%clk 0:01:45]} 23. Ng4 {[%clk 0:01:56]}  Rfh5 {[%clk 0:01:41]} 24. Nf4 {[%clk 0:01:53]}  Nxf4 {[%clk 0:01:39]} 25. Qxf4 {[%clk 0:01:54]}  f5 {[%clk 0:01:39]} 26. Nh2 {[%clk 0:01:50]}  g5 {[%clk 0:01:40]} 27. Qe3 {[%clk 0:01:50]}  a5 {[%clk 0:01:40]} 28. c4 {[%clk 0:01:44]}  Bc6 {[%clk 0:01:36]} 29. Rc1 {[%clk 0:01:35]}  Rg8 {[%clk 0:01:28]} 30. Qf3 {[%clk 0:01:30]}  Rh7 {[%clk 0:01:21]} 31. Ng4 {[%clk 0:01:27]}  dxc4 {[%clk 0:01:13]} 32. Qxc6 {[%clk 0:01:25]}  fxg4 {[%clk 0:01:14]} 33. Rxc4 {[%clk 0:01:24]}  gxh3 {[%clk 0:01:08]} 34. Qxc7+ {[%clk 0:01:20]}  Kg6 {[%clk 0:01:03]} 35. Qxd8 {[%clk 0:01:17]}  Rxd8 {[%clk 0:01:04]} 36. gxh3 {[%clk 0:01:17]}  Rhd7 {[%clk 0:01:00]} 37. Re4 {[%clk 0:01:14]}  Kf5 {[%clk 0:01:01]} 38. f3 {[%clk 0:01:13]}  Rd5 {[%clk 0:00:59]} 39. Kf2 {[%clk 0:01:12]}  b5 {[%clk 0:00:59]} 40. axb5 {[%clk 0:00:56]}  Rxb5 {[%clk 0:01:00]} 41. Re3 {[%clk 0:00:57]}  Rdb8 {[%clk 0:00:58]} 42. Rcc3 {[%clk 0:00:53]}  Rb4 {[%clk 0:00:58]} 43. Red3 {[%clk 0:00:53]}  Kf4 {[%clk 0:00:45]} 44. Rc7 {[%clk 0:00:49]}  Rf8 {[%clk 0:00:42]} 45. Ra7 {[%clk 0:00:48]}  Rb5 {[%clk 0:00:40]} 46. Re3 {[%clk 0:00:41]}  Kf5 {[%clk 0:00:29]} 47. Rc3 {[%clk 0:00:37]}  Kf4 {[%clk 0:00:29]} 48. Rcc7 {[%clk 0:00:34]}  Rf5 {[%clk 0:00:27]} 49. Rc3 {[%clk 0:00:28]}  Rd5 {[%clk 0:00:22]} 50. Rc4 {[%clk 0:00:20]}  Rf8 {[%clk 0:00:22]} 51. Rxa5 {[%clk 0:00:20]}  Rxa5 {[%clk 0:00:21]} 52. d5+ {[%clk 0:00:20]}  Kxe5 {[%clk 0:00:20]} 53. dxe6 {[%clk 0:00:17]}  Kxe6 {[%clk 0:00:21]} 0-1


[Site "https://www.chess.com"]

[Event "Titled Tuesday Blitz November 14 Early 2023"]
[White "Lazavik, Denis"]
[Black "Herman, Matthew"]
[WhiteFideId "13515110"]
[BlackFideId "2028964"]
[WhiteElo "3052"]
[BlackElo "2527"]
[Result "1-0"]
[Round "1"]
[TimeControl "180+1"]
[Date "2023.11.14"]
[WhiteClock "0:00:09"]
[BlackClock "0:00:14"]
[Board "12"]

1. d4 {[%clk 0:03:00]}  Nf6 {[%clk 0:02:59]} 2. c4 {[%clk 0:03:01]}  g6 {[%clk 0:03:00]} 3. Nc3 {[%clk 0:03:00]}  Bg7 {[%clk 0:03:00]} 4. e4 {[%clk 0:03:00]}  d6 {[%clk 0:03:01]} 5. h3 {[%clk 0:03:00]}  O-O {[%clk 0:03:01]} 6. Be3 {[%clk 0:03:00]}  c5 {[%clk 0:02:59]} 7. d5 {[%clk 0:02:57]}  b5 {[%clk 0:02:54]} 8. cxb5 {[%clk 0:02:57]}  a6 {[%clk 0:02:54]} 9. a4 {[%clk 0:02:55]}  Qa5 {[%clk 0:02:54]} 10. Bd2 {[%clk 0:02:53]}  Qb4 {[%clk 0:02:32]} 11. Qc2 {[%clk 0:02:47]}  axb5 {[%clk 0:02:21]} 12. Bxb5 {[%clk 0:02:46]}  Ba6 {[%clk 0:02:22]} 13. f3 {[%clk 0:02:29]}  Bxb5 {[%clk 0:02:05]} 14. Nxb5 {[%clk 0:02:28]}  Qxb5 {[%clk 0:02:06]} 15. axb5 {[%clk 0:02:28]}  Rxa1+ {[%clk 0:02:07]} 16. Bc1 {[%clk 0:02:26]}  Nbd7 {[%clk 0:01:20]} 17. Ne2 {[%clk 0:02:25]}  Rb8 {[%clk 0:01:19]} 18. Nc3 {[%clk 0:02:24]}  Nh5 {[%clk 0:00:48]} 19. O-O {[%clk 0:02:03]}  Bd4+ {[%clk 0:00:39]} 20. Kh2 {[%clk 0:02:03]}  Be5+ {[%clk 0:00:18]} 21. f4 {[%clk 0:02:02]}  Nxf4 {[%clk 0:00:07]} 22. Kh1 {[%clk 0:01:21]}  Nh5 {[%clk 0:00:06]} 23. Ne2 {[%clk 0:01:21]}  Rxb5 {[%clk 0:00:05]} 24. g4 {[%clk 0:01:21]}  Nhf6 {[%clk 0:00:04]} 25. Qd3 {[%clk 0:01:18]}  Rxb2 {[%clk 0:00:04]} 26. Qf3 {[%clk 0:01:08]}  Rbb1 {[%clk 0:00:03]} 27. g5 {[%clk 0:01:09]}  Bb2 {[%clk 0:00:02]} 28. gxf6 {[%clk 0:01:07]}  Nxf6 {[%clk 0:00:03]} 29. Kg2 {[%clk 0:00:39]}  Bxc1 {[%clk 0:00:03]} 30. e5 {[%clk 0:00:39]}  dxe5 {[%clk 0:00:02]} 31. d6 {[%clk 0:00:40]}  e4 {[%clk 0:00:01]} 32. Qf2 {[%clk 0:00:22]}  Rb2 {[%clk 0:00:01]} 33. d7 {[%clk 0:00:12]}  Raa2 {[%clk 0:00:02]} 34. d8=Q+ {[%clk 0:00:11]}  Kg7 {[%clk 0:00:03]} 35. Rxc1 {[%clk 0:00:09]}  Rxe2 {[%clk 0:00:02]} 36. Qxe2 {[%clk 0:00:09]}  Rxe2+ {[%clk 0:00:03]} 37. Kf1 {[%clk 0:00:10]}  Ra2 {[%clk 0:00:04]} 38. Qxe7 {[%clk 0:00:10]}  Ra3 {[%clk 0:00:04]} 39. Qe5 {[%clk 0:00:09]}  Rf3+ {[%clk 0:00:05]} 40. Kg2 {[%clk 0:00:09]}  Rf5 {[%clk 0:00:06]} 41. Qc3 {[%clk 0:00:09]}  h5 {[%clk 0:00:07]} 42. Rf1 {[%clk 0:00:10]}  h4 {[%clk 0:00:08]} 43. Rxf5 {[%clk 0:00:10]}  gxf5 {[%clk 0:00:09]} 44. Qxc5 {[%clk 0:00:11]}  Kg6 {[%clk 0:00:10]} 45. Kf2 {[%clk 0:00:11]}  Kg5 {[%clk 0:00:10]} 46. Ke3 {[%clk 0:00:10]}  Nh5 {[%clk 0:00:11]} 47. Qe7+ {[%clk 0:00:11]}  f6 {[%clk 0:00:12]} 48. Qf7 {[%clk 0:00:08]}  f4+ {[%clk 0:00:12]} 49. Kxe4 {[%clk 0:00:07]}  Ng3+ {[%clk 0:00:12]} 50. Kf3 {[%clk 0:00:08]}  Kf5 {[%clk 0:00:13]} 51. Qd5+ {[%clk 0:00:08]}  Kg6 {[%clk 0:00:13]} 52. Kxf4 {[%clk 0:00:08]}  Nh5+ {[%clk 0:00:14]} 53. Kg4 {[%clk 0:00:09]}  f5+ {[%clk 0:00:14]} 54. Qxf5+ {[%clk 0:00:09]}  Kg7 {[%clk 0:00:14]} 55. Kxh5 {[%clk 0:00:09]} 1-0


[Site "https://www.chess.com"]

[Event "Titled Tuesday Blitz November 14 Early 2023"]
[White "Soham Kamotra"]
[Black "Erdogmus, Yagiz Kaan"]
[WhiteFideId "46647490"]
[BlackFideId "44599790"]
[WhiteElo "2527"]
[BlackElo "3038"]
[Result "0-1"]
[Round "1"]
[TimeControl "180+1"]
[Date "2023.11.14"]
[WhiteClock "0:00:09"]
[BlackClock "0:00:16"]
[Board "13"]

1. Nf3 {[%clk 0:02:59]}  Nf6 {[%clk 0:02:59]} 2. b3 {[%clk 0:02:57]}  d5 {[%clk 0:02:58]} 3. e3 {[%clk 0:02:55]}  Bf5 {[%clk 0:02:57]} 4. Bb2 {[%clk 0:02:47]}  c6 {[%clk 0:02:54]} 5. Nh4 {[%clk 0:02:41]}  Bg4 {[%clk 0:02:47]} 6. Be2 {[%clk 0:02:41]}  Bxe2 {[%clk 0:02:46]} 7. Qxe2 {[%clk 0:02:42]}  Nbd7 {[%clk 0:02:45]} 8. f4 {[%clk 0:02:42]}  e6 {[%clk 0:02:39]} 9. O-O {[%clk 0:02:40]}  Bd6 {[%clk 0:02:38]} 10. d3 {[%clk 0:02:36]}  O-O {[%clk 0:02:35]} 11. Nd2 {[%clk 0:02:36]}  Re8 {[%clk 0:02:32]} 12. Kh1 {[%clk 0:02:26]}  e5 {[%clk 0:02:26]} 13. Nf5 {[%clk 0:02:18]}  Bc7 {[%clk 0:02:25]} 14. fxe5 {[%clk 0:02:07]}  Bxe5 {[%clk 0:02:25]} 15. Bxe5 {[%clk 0:02:04]}  Nxe5 {[%clk 0:02:25]} 16. Nf3 {[%clk 0:02:01]}  Neg4 {[%clk 0:02:06]} 17. Qd2 {[%clk 0:01:22]}  g6 {[%clk 0:01:57]} 18. h3 {[%clk 0:01:05]}  gxf5 {[%clk 0:01:48]} 19. hxg4 {[%clk 0:01:04]}  Nxg4 {[%clk 0:01:48]} 20. Qe1 {[%clk 0:00:59]}  Qd6 {[%clk 0:01:38]} 21. Qh4 {[%clk 0:00:57]}  Re6 {[%clk 0:01:28]} 22. Kg1 {[%clk 0:00:44]}  Rh6 {[%clk 0:00:58]} 23. Qg5+ {[%clk 0:00:40]}  Rg6 {[%clk 0:00:58]} 24. Qf4 {[%clk 0:00:35]}  Re8 {[%clk 0:00:48]} 25. Qxd6 {[%clk 0:00:28]}  Rxd6 {[%clk 0:00:48]} 26. Nd4 {[%clk 0:00:29]}  Nxe3 {[%clk 0:00:45]} 27. Nxf5 {[%clk 0:00:29]}  Nxf5 {[%clk 0:00:45]} 28. Rxf5 {[%clk 0:00:30]}  Re2 {[%clk 0:00:39]} 29. Rf2 {[%clk 0:00:30]}  Re7 {[%clk 0:00:37]} 30. a4 {[%clk 0:00:24]}  a5 {[%clk 0:00:36]} 31. Raf1 {[%clk 0:00:24]}  Kg7 {[%clk 0:00:36]} 32. Rf4 {[%clk 0:00:23]}  Rg6 {[%clk 0:00:35]} 33. R1f2 {[%clk 0:00:21]}  f6 {[%clk 0:00:34]} 34. Kf1 {[%clk 0:00:20]}  h5 {[%clk 0:00:32]} 35. R2f3 {[%clk 0:00:20]}  Re5 {[%clk 0:00:31]} 36. Kf2 {[%clk 0:00:20]}  Kf7 {[%clk 0:00:29]} 37. Rh4 {[%clk 0:00:18]}  Ke6 {[%clk 0:00:27]} 38. g3 {[%clk 0:00:17]}  Rg4 {[%clk 0:00:21]} 39. Rxg4 {[%clk 0:00:14]}  hxg4 {[%clk 0:00:22]} 40. Rf4 {[%clk 0:00:15]}  Rf5 {[%clk 0:00:16]} 41. Ke3 {[%clk 0:00:16]}  Rxf4 {[%clk 0:00:14]} 42. Kxf4 {[%clk 0:00:17]}  f5 {[%clk 0:00:15]} 43. d4 {[%clk 0:00:16]}  Kf6 {[%clk 0:00:15]} 44. c3 {[%clk 0:00:15]}  Kg6 {[%clk 0:00:15]} 45. c4 {[%clk 0:00:09]}  Kf6 {[%clk 0:00:14]} 46. c5 {[%clk 0:00:08]}  Kg6 {[%clk 0:00:14]} 47. Ke5 {[%clk 0:00:08]}  Kg5 {[%clk 0:00:15]} 48. Kd6 {[%clk 0:00:07]}  f4 {[%clk 0:00:15]} 49. gxf4+ {[%clk 0:00:07]}  Kxf4 {[%clk 0:00:16]} 50. Kc7 {[%clk 0:00:08]}  g3 {[%clk 0:00:17]} 51. Kxb7 {[%clk 0:00:09]}  g2 {[%clk 0:00:17]} 52. Kxc6 {[%clk 0:00:10]}  g1=Q {[%clk 0:00:18]} 53. Kxd5 {[%clk 0:00:10]}  Qg2+ {[%clk 0:00:18]} 54. Kc4 {[%clk 0:00:10]}  Qc2+ {[%clk 0:00:18]} 55. Kb5 {[%clk 0:00:10]}  Qxb3+ {[%clk 0:00:18]} 56. Kxa5 {[%clk 0:00:11]}  Ke4 {[%clk 0:00:19]} 57. c6 {[%clk 0:00:10]}  Qc4 {[%clk 0:00:17]} 58. Kb6 {[%clk 0:00:10]}  Qb4+ {[%clk 0:00:18]} 59. Ka7 {[%clk 0:00:09]}  Qxa4+ {[%clk 0:00:18]} 60. Kb7 {[%clk 0:00:09]}  Qb5+ {[%clk 0:00:17]} 61. Ka7 {[%clk 0:00:08]}  Qxc6 {[%clk 0:00:16]} 62. d5 {[%clk 0:00:09]}  Kxd5 {[%clk 0:00:15]} 63. Kb8 {[%clk 0:00:10]}  Qd7 {[%clk 0:00:15]} 64. Ka8 {[%clk 0:00:09]}  Kc6 {[%clk 0:00:16]} 0-1


[Site "https://www.chess.com"]

[Event "Titled Tuesday Blitz November 14 Early 2023"]
[White "Demchenko, Anton"]
[Black "Ben Artzi, Ido"]
[WhiteFideId "4160258"]
[BlackFideId "2810913"]
[WhiteElo "3025"]
[BlackElo "2527"]
[Result "1-0"]
[Round "1"]
[TimeControl "180+1"]
[Date "2023.11.14"]
[WhiteClock "0:01:29"]
[BlackClock "0:00:00"]
[Board "14"]

1. e4 {[%clk 0:02:54]}  e5 {[%clk 0:02:59]} 2. Nf3 {[%clk 0:02:52]}  Nc6 {[%clk 0:03:00]} 3. Bc4 {[%clk 0:02:51]}  Bc5 {[%clk 0:02:59]} 4. d3 {[%clk 0:02:52]}  Nf6 {[%clk 0:02:59]} 5. Bg5 {[%clk 0:02:52]}  h6 {[%clk 0:02:58]} 6. Bh4 {[%clk 0:02:52]}  g5 {[%clk 0:02:58]} 7. Bg3 {[%clk 0:02:53]}  d6 {[%clk 0:02:59]} 8. c3 {[%clk 0:02:53]}  Bg4 {[%clk 0:02:59]} 9. Nbd2 {[%clk 0:02:53]}  Qe7 {[%clk 0:02:53]} 10. h3 {[%clk 0:02:52]}  Bh5 {[%clk 0:02:52]} 11. Qc2 {[%clk 0:02:50]}  O-O-O {[%clk 0:02:47]} 12. b4 {[%clk 0:02:36]}  Bb6 {[%clk 0:02:47]} 13. Bb5 {[%clk 0:02:35]}  Nb8 {[%clk 0:02:34]} 14. a4 {[%clk 0:02:19]}  c6 {[%clk 0:02:34]} 15. a5 {[%clk 0:02:12]}  Bc7 {[%clk 0:02:27]} 16. Ba4 {[%clk 0:02:10]}  d5 {[%clk 0:02:26]} 17. b5 {[%clk 0:02:01]}  cxb5 {[%clk 0:01:37]} 18. Bxb5 {[%clk 0:02:00]}  a6 {[%clk 0:01:34]} 19. Ba4 {[%clk 0:02:00]}  Bxf3 {[%clk 0:01:08]} 20. Nxf3 {[%clk 0:01:59]}  dxe4 {[%clk 0:01:05]} 21. dxe4 {[%clk 0:01:59]}  Nbd7 {[%clk 0:00:59]} 22. Bxd7+ {[%clk 0:01:37]}  Rxd7 {[%clk 0:00:48]} 23. O-O {[%clk 0:01:37]}  Rhd8 {[%clk 0:00:35]} 24. Rfb1 {[%clk 0:01:37]}  Qc5 {[%clk 0:00:34]} 25. Qb3 {[%clk 0:01:32]}  Bb8 {[%clk 0:00:27]} 26. Ra4 {[%clk 0:01:31]}  Rc7 {[%clk 0:00:00]} 27. Bxe5 {[%clk 0:01:29]} 1-0


[Site "https://www.chess.com"]

[Event "Titled Tuesday Blitz November 14 Early 2023"]
[White "Slade, Theodore"]
[Black "Martinez Alcantara, Jose Eduardo"]
[WhiteFideId "426547"]
[BlackFideId "3805662"]
[WhiteElo "2526"]
[BlackElo "3021"]
[Result "0-1"]
[Round "1"]
[TimeControl "180+1"]
[Date "2023.11.14"]
[WhiteClock "0:00:04"]
[BlackClock "0:02:10"]
[Board "15"]

1. d4 {[%clk 0:03:00]}  Nf6 {[%clk 0:03:00]} 2. c4 {[%clk 0:03:01]}  e6 {[%clk 0:03:00]} 3. g3 {[%clk 0:03:01]}  Bb4+ {[%clk 0:03:00]} 4. Nd2 {[%clk 0:03:00]}  c5 {[%clk 0:03:00]} 5. a3 {[%clk 0:02:55]}  Bxd2+ {[%clk 0:02:54]} 6. Qxd2 {[%clk 0:02:56]}  cxd4 {[%clk 0:02:54]} 7. Nf3 {[%clk 0:02:55]}  O-O {[%clk 0:02:53]} 8. Nxd4 {[%clk 0:02:52]}  d5 {[%clk 0:02:54]} 9. cxd5 {[%clk 0:02:45]}  Qxd5 {[%clk 0:02:55]} 10. Nf3 {[%clk 0:02:43]}  Qb5 {[%clk 0:02:45]} 11. Bg2 {[%clk 0:02:37]}  Nc6 {[%clk 0:02:45]} 12. O-O {[%clk 0:02:32]}  e5 {[%clk 0:02:46]} 13. b4 {[%clk 0:02:25]}  Rd8 {[%clk 0:02:41]} 14. Qc2 {[%clk 0:02:21]}  e4 {[%clk 0:02:38]} 15. a4 {[%clk 0:01:34]}  Qh5 {[%clk 0:02:33]} 16. Ng5 {[%clk 0:01:28]}  Nd4 {[%clk 0:02:26]} 17. Qb1 {[%clk 0:01:23]}  Bf5 {[%clk 0:02:20]} 18. Nxe4 {[%clk 0:01:14]}  Nxe2+ {[%clk 0:02:20]} 19. Kh1 {[%clk 0:01:15]}  Bxe4 {[%clk 0:02:19]} 20. Bxe4 {[%clk 0:01:14]}  Nc3 {[%clk 0:02:20]} 21. Bxb7 {[%clk 0:00:55]}  Nxb1 {[%clk 0:02:19]} 22. Bxa8 {[%clk 0:00:54]}  Rxa8 {[%clk 0:02:18]} 23. Rxb1 {[%clk 0:00:54]}  Ng4 {[%clk 0:02:16]} 24. h4 {[%clk 0:00:44]}  Qd5+ {[%clk 0:02:16]} 25. Kg1 {[%clk 0:00:40]}  Ne5 {[%clk 0:02:16]} 26. f4 {[%clk 0:00:21]}  Qd4+ {[%clk 0:02:15]} 27. Kh2 {[%clk 0:00:17]}  Ng4+ {[%clk 0:02:16]} 28. Kh3 {[%clk 0:00:18]}  h5 {[%clk 0:02:16]} 29. Rb2 {[%clk 0:00:11]}  Rc8 {[%clk 0:02:15]} 30. Re1 {[%clk 0:00:04]}  Rxc1 {[%clk 0:02:11]} 31. Rxc1 {[%clk 0:00:04]}  Qxb2 {[%clk 0:02:10]} 32. Rc8+ {[%clk 0:00:03]}  Kh7 {[%clk 0:02:11]} 33. b5 {[%clk 0:00:04]}  Qh2# {[%clk 0:02:10]} 0-1


[Site "https://www.chess.com"]